fUSD/lending_fUSD_20250622
["ID","MTS","AMOUNT","RATE_DAILY","PERIOD"]
[367032451,1750623092997,-1887.27,0.00036164,15]
[367032452,1750623093006,-1278.08,0.00036164,15]
[367032453,1750623093016,-490.0,0.00036164,15]
[367032454,1750623093026,-1251.26,0.00036164,15]
[367032455,1750623093037,-493.31,0.00036164,15]
[367032456,1750623093047,-2923.59,0.00036164,15]
[367032457,1750623093057,-1595.65,0.00036164,15]
[367032458,1750623093066,-2026.15,0.00036164,15]
[367032459,1750623093076,-490.0,0.00036164,15]
[367032460,1750623093085,-2332.89,0.00036164,15]
[367032461,1750623093095,-635.72,0.00036164,15]
[367032462,1750623093104,-5136.6,0.00036164,15]
[367032463,1750623093114,-1829.33,0.00036164,15]
[367032464,1750623093124,-884.45,0.00036164,15]
[367032465,1750623093133,-3600.48,0.00036164,15]
[367032466,1750623093143,-416.46515634,0.00036164,15]
[367032467,1750623093152,-495.81943161,0.00036164,15]
[367032468,1750623093162,-990.0,0.00036164,15]
[367032469,1750623093171,-911.53,0.00036164,15]
[367032470,1750623093182,-644.75,0.00036164,15]
[367032471,1750623093192,-490.0,0.00036164,15]
[367032472,1750623093201,-706.45,0.00036164,15]
[367032473,1750623093211,-986.8,0.00036164,15]
[367032474,1750623093220,-490.0,0.00036164,15]
[367032475,1750623093230,-490.0,0.00036164,15]
[367032476,1750623093239,-1756.48,0.00036164,15]
[367032477,1750623093248,-567.11,0.00036164,15]
[367032478,1750623093257,-490.0,0.00036164,15]
[367032479,1750623093266,-2185.15,0.00036164,15]
[367032480,1750623093276,-490.0,0.00036164,15]
[367032481,1750623093286,-490.0,0.00036164,15]
[367032482,1750623093296,-974.21,0.00036164,15]
[367032483,1750623093305,-490.0,0.00036164,15]
[367032484,1750623093314,-568.83000001,0.00036164,15]
[367032485,1750623093324,-2237.94,0.00036164,15]
[367032486,1750623093333,-975.97,0.00036164,15]
[367032487,1750623093343,-1878.84,0.00036164,15]
[367032488,1750623093352,-490.0,0.00036164,15]
[367032489,1750623093362,-812.18,0.00036164,15]
[367032490,1750623093371,-490.0,0.00036164,15]
[367032491,1750623093381,-1154.07,0.00036164,15]
[367032492,1750623093391,-337.95608619,0.00036164,15]
[367032493,1750623093400,-4854.73,0.00036164,15]
[367032494,1750623093409,-490.0,0.00036164,15]
[367032495,1750623093419,-2078.66,0.00036164,15]
[367032496,1750623093428,-635.85936758,0.00036164,15]
[367032497,1750623093437,-868.07,0.00036164,15]
[367032498,1750623093447,-490.0,0.00036164,15]
[367032499,1750623093456,-913.26,0.00036164,15]
[367032500,1750623093465,-1754.63,0.00036164,15]
[367032501,1750623093475,-490.0,0.00036164,15]
[367032502,1750623093484,-951.93,0.00036164,15]
[367032503,1750623093493,-490.0,0.00036164,15]
[367032504,1750623093503,-490.0,0.00036164,15]
[367032505,1750623093512,-1370.08,0.00036164,15]
[367032506,1750623093779,-490.0,0.00036164,15]
[367032507,1750623093794,-490.0,0.00036164,15]
[367032508,1750623093805,-490.0,0.00036164,15]
[367032509,1750623093815,-4936.67,0.00036164,15]
[367032510,1750623093825,-12778.24,0.00036164,15]
[367032511,1750623093835,-1089.22,0.00036164,15]
[367032512,1750623093845,-2018.48,0.00036164,15]
[367032513,1750623093860,-2095.4,0.00036164,15]
[367032514,1750623093870,-2062.56,0.00036164,15]
[367032515,1750623093879,-490.0,0.00036164,15]
[367032516,1750623093890,-490.0,0.00036164,15]
[367032517,1750623093900,-2118.26,0.00036164,15]
[367032518,1750623093910,-490.0,0.00036164,15]
[367032519,1750623093920,-626.26,0.00036164,15]
[367032520,1750623093930,-490.0,0.00036164,15]
[367032521,1750623093940,-490.0,0.00036164,15]
[367032522,1750623093950,-2221.1,0.00036164,15]
[367032523,1750623093961,-490.0,0.00036164,15]
[367032524,1750623093971,-2028.3,0.00036164,15]
[367032525,1750623093980,-490.0,0.00036164,15]
[367032526,1750623093991,-829.85,0.00036164,15]
[367032527,1750623094001,-1669.85,0.00036164,15]
[367032528,1750623094011,-2052.94,0.00036164,15]
[367032529,1750623094020,-2404.26,0.00036164,15]
[367032530,1750623094030,-510.88295025,0.00036164,15]
[367032531,1750623094043,-1255.58,0.00036164,15]
[367032532,1750623094053,-490.0,0.00036164,15]
[367032533,1750623094063,-4044.2,0.00036164,15]
[367032534,1750623094072,-632.61,0.00036164,15]
[367032535,1750623094082,-6369.33,0.00036164,15]
[367032536,1750623094092,-2126.41,0.00036164,15]
[367032537,1750623094101,-490.0,0.00036164,15]
[367032538,1750623094111,-839.91,0.00036164,15]
[367032539,1750623094121,-490.0,0.00036164,15]
[367032540,1750623094130,-490.0,0.00036164,15]
[367032541,1750623094140,-490.0,0.00036164,15]
[367032542,1750623094149,-490.0,0.00036164,15]
[367032543,1750623094159,-1966.79,0.00036164,15]
[367032544,1750623094168,-490.0,0.00036164,15]
[367032545,1750623094178,-14191.19,0.00036164,15]
[367032546,1750623094188,-490.0,0.00036164,15]
[367032547,1750623094198,-1973.36,0.00036164,15]
[367032548,1750623094207,-490.0,0.00036164,15]
[367032549,1750623094217,-1462.28,0.00036164,15]
[367032550,1750623094227,-985.11,0.00036164,15]
[367032551,1750623094237,-1462.23,0.00036164,15]
[367032552,1750623094247,-490.0,0.00036164,15]
[367032553,1750623094257,-822.31,0.00036164,15]
[367032554,1750623094267,-490.0,0.00036164,15]
[367032555,1750623094278,-5738.6,0.00036164,15]
[367032556,1750623094290,-1217.6,0.00036164,15]
[367032557,1750623094301,-1414.06,0.00036164,15]
[367032558,1750623094311,-490.0,0.00036164,15]
[367032559,1750623094320,-490.0,0.00036164,15]
[367032560,1750623094329,-2674.9,0.00036164,15]
[367032561,1750623094339,-229.71311653,0.00036164,15]
[367032562,1750623094349,-2221.83,0.00036164,15]
[367032563,1750623094359,-762.93,0.00036164,15]
[367032564,1750623094369,-490.0,0.00036164,15]
[367032565,1750623094379,-882.46,0.00036164,15]
[367032566,1750623094389,-610.42,0.00036164,15]
[367032567,1750623094398,-490.0,0.00036164,15]
[367032568,1750623094408,-490.0,0.00036164,15]
[367032569,1750623094417,-2512.43,0.00036164,15]
[367032570,1750623094427,-490.0,0.00036164,15]
[367032571,1750623094437,-2129.87,0.00036164,15]
[367032572,1750623094448,-2210.98,0.00036164,15]
[367032573,1750623094457,-490.0,0.00036164,15]
[367032574,1750623094467,-1687.99,0.00036164,15]
[367032575,1750623094477,-8031.99,0.00036164,15]
[367032576,1750623094488,-490.0,0.00036164,15]
[367032577,1750623094499,-10888.29,0.00036164,14]
[367032578,1750623094509,-3617.39,0.00036164,15]
[367032579,1750623094519,-537.79,0.00036164,15]
[367032580,1750623094529,-490.0,0.00036164,15]
[367032581,1750623094541,-18523.03,0.00036164,15]
[367032582,1750623094551,-490.0,0.00036164,15]
[367032583,1750623094560,-5662.0,0.00036164,15]
[367032584,1750623094570,-490.0,0.00036164,15]
[367032585,1750623094580,-656.12,0.00036164,15]
[367032586,1750623094590,-1128.28,0.00036164,15]
[367032587,1750623094600,-2310.53,0.00036164,15]
[367032588,1750623094609,-490.0,0.00036164,15]
[367032589,1750623094619,-2012.19,0.00036164,15]
[367032590,1750623094628,-490.0,0.00036164,15]
[367032591,1750623094638,-3220.65,0.00036164,15]
[367032592,1750623094648,-490.0,0.00036164,15]
[367032593,1750623094658,-490.0,0.00036164,15]
[367032594,1750623094669,-468.39910917,0.00036164,15]
[367032595,1750623094679,-1129.87,0.00036164,15]
[367032596,1750623094688,-490.0,0.00036164,15]
[367032597,1750623094698,-870.38,0.00036164,15]
[367032598,1750623094708,-490.0,0.00036164,15]
[367032599,1750623094718,-490.0,0.00036164,15]
[367032600,1750623094727,-2080.35,0.00036164,15]
[367032601,1750623094737,-4076.07,0.00036164,15]
[367032602,1750623094746,-490.0,0.00036164,15]
[367032603,1750623094755,-7092.7,0.00036164,15]
[367032604,1750623094766,-3487.85,0.00036164,15]
[367032605,1750623094775,-490.0,0.00036164,15]
[367032606,1750623094785,-490.0,0.00036164,15]
[367032607,1750623094797,-490.0,0.00036164,15]
[367032608,1750623094806,-591.94,0.00036164,15]
[367032609,1750623094816,-959.79,0.00036164,15]
[367032610,1750623094826,-223.72199536,0.00036164,15]
[367032611,1750623094836,-1866.0,0.00036164,15]
[367032612,1750623094847,-490.0,0.00036164,15]
[367032613,1750623094860,-490.0,0.00036164,15]
[367032614,1750623094870,-490.0,0.00036164,15]
[367032615,1750623094880,-490.0,0.00036164,15]
[367032616,1750623094891,-2481.99,0.00036164,15]
[367032617,1750623094902,-689.02,0.00036164,15]
[367032618,1750623094911,-490.0,0.00036164,15]
[367032619,1750623094922,-1584.02,0.00036164,15]
[367032620,1750623094935,-490.0,0.00036164,15]
[367032621,1750623094944,-2122.82,0.00036164,15]
[367032622,1750623094954,-490.0,0.00036164,15]
[367032623,1750623094964,-490.0,0.00036164,15]
[367032624,1750623094973,-490.0,0.00036164,15]
[367032625,1750623094983,-962.19,0.00036164,15]
[367032626,1750623094993,-490.0,0.00036164,15]
[367032627,1750623095002,-1762.49,0.00036164,15]
[367032628,1750623095012,-490.0,0.00036164,15]
[367032629,1750623095022,-1267.3,0.00036164,15]
[367032630,1750623095031,-1341.51,0.00036164,15]
[367032631,1750623095044,-2295.87,0.00036164,15]
[367032632,1750623095055,-490.0,0.00036164,15]
[367032633,1750623095065,-490.0,0.00036164,15]
[367032634,1750623095075,-1943.1,0.00036164,15]
[367032635,1750623095084,-500.25459612,0.00036164,15]
[367032636,1750623095094,-575.98,0.00036164,15]
[367032637,1750623095104,-490.0,0.00036164,15]
[367032638,1750623095114,-735.31,0.00036164,15]
[367032639,1750623095123,-1903.3,0.00036164,15]
[367032640,1750623095133,-1774.41,0.00036164,15]
[367032641,1750623095143,-590.09774677,0.00036164,15]
[367032642,1750623095152,-490.0,0.00036164,15]
[367032643,1750623095162,-490.0,0.00036164,15]
[367032644,1750623095172,-2365.24,0.00036164,15]
[367032645,1750623095181,-1249.34,0.00036164,2]
[367032646,1750623095191,-490.0,0.00036164,15]
[367032647,1750623095200,-1712.7,0.00036164,15]
[367032648,1750623095228,-1957.08,0.00036164,15]
[367032649,1750623095245,-2092.55,0.00036164,15]
[367032650,1750623095265,-2330.89,0.00036164,15]
[367032651,1750623095285,-517.24,0.00036164,15]
[367032652,1750623095302,-2340.05,0.00036164,15]
[367032653,1750623095321,-490.0,0.00036164,15]
[367032654,1750623095342,-1029.88,0.00036164,15]
[367032655,1750623095362,-805.81,0.00036164,15]
[367032656,1750623095380,-490.0,0.00036164,15]
[367032657,1750623095401,-849.45,0.00036164,15]
[367032658,1750623095418,-490.0,0.00036164,15]
[367032659,1750623095433,-1622.88,0.00036164,15]
[367032660,1750623095450,-326.25836161,0.0003621,2]
[367032661,1750623095464,-2000.0,0.00036215,5]
[367032662,1750623095481,-500.0,0.00036221,5]
[367032663,1750623095496,-13390.7180114,0.00036277,2]
[367032664,1750623095512,-259.58600763,0.00036279,34]
[367032665,1750623095529,-1068.50722,0.00036288,30]
[367032666,1750623095545,-219.14,0.000363,2]
[367032667,1750623095560,-220.13,0.000363,2]
[367032668,1750623095575,-8576.49,0.000363,14]
[367032669,1750623095590,-150.0,0.00036338,120]
[367032670,1750623095605,-474.88969664,0.00036362,9]
[367032671,1750623095620,-283.86025695,0.00036379,15]
[367032672,1750623095635,-150.5,0.000364,120]
[367032673,1750623095649,-470.0,0.000364,120]
[367032674,1750623095664,-1500.0,0.000364,24]
[367032675,1750623095680,-470.0,0.0003641,120]
[367032676,1750623095695,-470.0,0.0003642,120]
[367032677,1750623095711,-192.08,0.0003642,120]
[367032678,1750623095726,-500.0,0.00036421,5]
[367032679,1750623095740,-500.0,0.00036421,5]
[367032680,1750623095755,-500.0,0.00036421,5]
[367032681,1750623095770,-1001.83970786,0.00036421,5]
[367032682,1750623095785,-500.0,0.00036421,5]
[367032683,1750623095803,-500.0,0.00036421,5]
[367032684,1750623095819,-304.33191136,0.00036421,5]
[367032685,1750623095834,-500.0,0.00036421,5]
[367032686,1750623095849,-1001.57381538,0.00036421,5]
[367032687,1750623095867,-1122.65233337,0.00036421,5]
[367032688,1750623095882,-13390.7180114,0.00036429,2]
[367032689,1750623095899,-151.0,0.00036438,7]
[367032690,1750623095915,-7224.170436,0.00036438,15]
[367032691,1750623095931,-311.91205,0.00036438,15]
[367032692,1750623095946,-150.574572,0.00036438,15]
[367032693,1750623095961,-490.0,0.00036438,15]
[367032694,1750623095975,-490.0,0.00036438,15]
[367032695,1750623095990,-490.0,0.00036438,15]
[367032696,1750623096005,-490.0,0.00036438,15]
[367032697,1750623096021,-490.0,0.00036438,15]
[367032698,1750623096036,-500.0,0.00036438,15]
[367032699,1750623096052,-490.0,0.00036438,15]
[367032700,1750623096067,-490.0,0.00036438,15]
[367032701,1750623096082,-759.01,0.00036438,15]
[367032702,1750623096096,-490.0,0.00036438,15]
[367032703,1750623096112,-269.05808254,0.00036438,15]
[367032704,1750623096126,-490.0,0.00036438,15]
[367032705,1750623096142,-490.0,0.00036438,15]
[367032706,1750623096156,-570.24867305,0.00036438,15]
[367032707,1750623096173,-490.0,0.00036438,15]
[367032708,1750623096189,-201.54,0.00036438,15]
[367032709,1750623096205,-490.0,0.00036438,15]
[367032710,1750623096219,-297.11616582,0.00036438,15]
[367032711,1750623096236,-430.42583501,0.00036438,15]
[367032712,1750623096252,-490.0,0.00036438,15]
[367032713,1750623096267,-490.0,0.00036438,15]
[367032714,1750623096282,-490.0,0.00036438,15]
[367032715,1750623096302,-562.75,0.00036438,15]
[367032716,1750623096317,-490.0,0.00036438,15]
[367032717,1750623096332,-490.0,0.00036438,15]
[367032718,1750623096346,-656.11,0.00036438,15]
[367032719,1750623096361,-490.0,0.00036438,15]
[367032720,1750623096377,-490.0,0.00036438,15]
[367032721,1750623096399,-490.0,0.00036438,15]
[367032722,1750623096414,-490.0,0.00036438,15]
[367032723,1750623096428,-1255.71,0.00036438,15]
[367032724,1750623096443,-529.56794235,0.00036438,15]
[367032725,1750623096458,-670.26,0.00036438,15]
[367032726,1750623096472,-490.0,0.00036438,15]
[367032727,1750623096487,-151.0,0.00036438,7]
[367032728,1750623096501,-151.0,0.00036438,7]
[367032729,1750623096516,-490.0,0.00036438,15]
[367032730,1750623096531,-490.0,0.00036438,15]
[367032731,1750623096548,-587.2,0.00036438,15]
[367032732,1750623096563,-490.0,0.00036438,2]
[367032733,1750623096577,-490.0,0.00036438,15]
[367032734,1750623096592,-490.0,0.00036438,15]
[367032735,1750623096607,-490.0,0.00036438,15]
[367032736,1750623096623,-490.0,0.00036438,15]
[367032737,1750623096637,-151.0,0.00036438,7]
[367032738,1750623096651,-490.0,0.00036438,15]
[367032739,1750623096665,-490.0,0.00036438,15]
[367032740,1750623096680,-490.0,0.00036438,15]
[367032741,1750623096695,-151.0,0.00036438,7]
[367032742,1750623096710,-490.0,0.00036438,15]
[367032743,1750623096725,-490.0,0.00036438,15]
[367032744,1750623096740,-490.0,0.00036438,15]
[367032745,1750623096755,-490.0,0.00036438,15]
[367032746,1750623096770,-490.0,0.00036438,15]
[367032747,1750623096785,-490.0,0.00036438,15]
[367032748,1750623096801,-273.52084267,0.00036438,15]
[367032749,1750623098129,-216.47915733,0.00036438,15]
[367032750,1750623098139,-699.53,0.00036438,15]
[367032751,1750623098148,-151.0,0.00036438,7]
[367032752,1750623098157,-490.0,0.00036438,15]
[367032753,1750623098167,-490.0,0.00036438,15]
[367032754,1750623098176,-240.83335973,0.00036438,15]
[367032755,1750623098186,-940.62,0.00036438,15]
[367032756,1750623098196,-490.0,0.00036438,15]
[367032757,1750623098205,-151.0,0.00036438,7]
[367032758,1750623098215,-151.0,0.00036438,7]
[367032759,1750623098224,-490.0,0.00036438,15]
[367032760,1750623098234,-490.0,0.00036438,15]
[367032761,1750623098242,-490.0,0.00036438,15]
[367032762,1750623098252,-512.07,0.00036438,15]
[367032763,1750623098261,-882.525702,0.00036438,7]
[367032764,1750623098270,-490.0,0.00036438,15]
[367032765,1750623098280,-882.525702,0.00036438,7]
[367032766,1750623098292,-490.0,0.00036438,15]
[367032767,1750623098301,-490.0,0.00036438,15]
[367032768,1750623098309,-216.64629973,0.00036438,15]
[367032769,1750623098317,-490.0,0.00036438,15]
[367032770,1750623098326,-490.0,0.00036438,15]
[367032771,1750623098333,-490.0,0.00036438,5]
[367032772,1750623098342,-490.0,0.00036438,15]
[367032773,1750623098350,-724.65,0.00036438,15]
[367032774,1750623098359,-490.0,0.00036438,15]
[367032775,1750623098368,-490.0,0.00036438,15]
[367032776,1750623098377,-490.0,0.00036438,15]
[367032777,1750623098387,-490.0,0.00036438,15]
[367032778,1750623098396,-490.0,0.00036438,15]
[367032779,1750623098406,-716.27,0.00036438,15]
[367032780,1750623098416,-490.0,0.00036438,2]
[367032781,1750623098425,-1633.93,0.00036438,15]
[367032782,1750623098434,-490.0,0.00036438,15]
[367032783,1750623098444,-490.0,0.00036438,15]
[367032784,1750623098453,-490.0,0.00036438,15]
[367032785,1750623098462,-1000.0,0.00036438,15]
[367032786,1750623098471,-742.8,0.00036438,15]
[367032787,1750623098481,-490.0,0.00036438,15]
[367032788,1750623098489,-231.66353528,0.00036438,15]
[367032789,1750623098498,-490.0,0.00036438,15]
[367032790,1750623098507,-490.0,0.00036438,15]
[367032791,1750623098517,-490.0,0.00036438,15]
[367032792,1750623098526,-490.0,0.00036438,15]
[367032793,1750623098535,-490.0,0.00036438,15]
[367032794,1750623098548,-490.0,0.00036438,15]
[367032795,1750623098557,-3470.632694,0.00036438,15]
[367032796,1750623098566,-1408.55,0.00036438,15]
[367032797,1750623098575,-360.84518146,0.00036438,15]
[367032798,1750623098585,-494.33869222,0.00036438,15]
[367032799,1750623098594,-490.0,0.00036438,15]
[367032800,1750623098603,-490.0,0.00036438,15]
[367032801,1750623098612,-888.17,0.00036438,15]
[367032802,1750623098621,-829.79,0.00036438,15]
[367032803,1750623098630,-778.14,0.00036438,15]
[367032804,1750623098640,-906.17,0.00036438,15]
[367032805,1750623098650,-490.0,0.00036438,15]
[367032806,1750623098660,-1076.93,0.00036438,15]
[367032807,1750623098669,-537.6,0.00036438,15]
[367032808,1750623098680,-410.6508299,0.00036438,15]
[367032809,1750623098691,-490.0,0.00036438,15]
[367032810,1750623098702,-490.0,0.00036438,15]
[367032811,1750623098712,-490.0,0.00036438,15]
[367032812,1750623098721,-490.0,0.00036438,15]
[367032813,1750623098732,-490.0,0.00036438,15]
[367032814,1750623098742,-490.0,0.00036438,15]
[367032815,1750623098751,-490.0,0.00036438,15]
[367032816,1750623098762,-810.24,0.00036438,15]
[367032817,1750623098774,-758.38,0.00036438,15]
[367032818,1750623098783,-493.15553653,0.00036438,15]
[367032819,1750623098796,-151.0,0.00036438,7]
[367032820,1750623098805,-512.65,0.00036438,15]
[367032821,1750623098815,-490.0,0.00036438,15]
[367032822,1750623098824,-490.0,0.00036438,15]
[367032823,1750623098833,-230.38202124,0.00036438,15]
[367032824,1750623098844,-490.0,0.00036438,15]
[367032825,1750623098857,-577.18,0.00036438,15]
[367032826,1750623098868,-490.0,0.00036438,15]
[367032827,1750623098878,-490.0,0.00036438,15]
[367032828,1750623098888,-490.0,0.00036438,15]
[367032829,1750623098898,-1011.01,0.00036438,15]
[367032830,1750623098908,-961.18,0.00036438,15]
[367032831,1750623098917,-490.0,0.00036438,15]
[367032832,1750623098928,-1067.24,0.00036438,15]
[367032833,1750623098938,-490.0,0.00036438,15]
[367032834,1750623098947,-970.19,0.00036438,15]
[367032835,1750623098956,-490.0,0.00036438,15]
[367032836,1750623098966,-633.18,0.00036438,15]
[367032837,1750623098976,-923.16,0.00036438,15]
[367032838,1750623098986,-490.0,0.00036438,15]
[367032839,1750623098996,-490.0,0.00036438,15]
[367032840,1750623099005,-693.63,0.00036438,15]
[367032841,1750623099015,-490.0,0.00036438,15]
[367032842,1750623099024,-490.0,0.00036438,15]
[367032843,1750623099033,-490.0,0.00036438,15]
[367032844,1750623099045,-681.23,0.00036438,15]
[367032845,1750623099054,-490.0,0.00036438,15]
[367032846,1750623099063,-301.90430731,0.00036438,15]
[367032847,1750623099073,-490.0,0.00036438,15]
[367032848,1750623099082,-513.1229632,0.00036438,15]
[367032849,1750623099091,-490.0,0.00036438,15]
[367032850,1750623099100,-490.0,0.00036438,15]
[367032851,1750623099109,-490.0,0.00036438,15]
[367032852,1750623099119,-490.0,0.00036438,15]
[367032853,1750623099130,-490.0,0.00036438,15]
[367032854,1750623099141,-490.0,0.00036438,15]
[367032855,1750623099150,-224.09894092,0.00036438,15]
[367032856,1750623099159,-580.46,0.00036438,15]
[367032857,1750623099170,-490.0,0.00036438,15]
[367032858,1750623099181,-490.0,0.00036438,15]
[367032859,1750623099190,-490.0,0.00036438,15]
[367032860,1750623099199,-1601.48,0.00036438,15]
[367032861,1750623099209,-490.0,0.00036438,15]
[367032862,1750623099218,-490.0,0.00036438,15]
[367032863,1750623099228,-152.389192,0.00036438,7]
[367032864,1750623099237,-708.52,0.00036438,15]
[367032865,1750623099248,-490.0,0.00036438,15]
[367032866,1750623099258,-595.54,0.00036438,15]
[367032867,1750623099267,-490.0,0.00036438,15]
[367032868,1750623099276,-490.0,0.00036438,15]
[367032869,1750623099285,-490.0,0.00036438,15]
[367032870,1750623099298,-490.0,0.00036438,15]
[367032871,1750623099307,-490.0,0.00036438,15]
[367032872,1750623099316,-490.0,0.00036438,15]
[367032873,1750623099325,-490.0,0.00036438,15]
[367032874,1750623099335,-490.0,0.00036438,15]
[367032875,1750623099344,-283.97385076,0.00036438,15]
[367032876,1750623099354,-490.0,0.00036438,15]
[367032877,1750623099363,-490.0,0.00036438,15]
[367032878,1750623099373,-490.0,0.00036438,15]
[367032879,1750623099382,-1356.09,0.00036438,15]
[367032880,1750623099392,-654.63,0.00036438,15]
[367032881,1750623099402,-490.0,0.00036438,15]
[367032882,1750623099411,-490.0,0.00036438,15]
[367032883,1750623099420,-897.76,0.00036438,15]
[367032884,1750623099429,-972.09,0.00036438,15]
[367032885,1750623099439,-553.93,0.00036438,15]
[367032886,1750623099448,-490.0,0.00036438,15]
[367032887,1750623099458,-490.0,0.00036438,15]
[367032888,1750623099467,-908.68,0.00036438,15]
[367032889,1750623099477,-560.95,0.00036438,15]
[367032890,1750623099486,-226.63274172,0.00036438,15]
[367032891,1750623099496,-490.0,0.00036438,15]
[367032892,1750623099505,-2066.0,0.00036438,15]
[367032893,1750623099516,-490.0,0.00036438,15]
[367032894,1750623099525,-923.9,0.00036438,15]
[367032895,1750623099535,-1746.71,0.00036438,15]
[367032896,1750623099547,-490.0,0.00036438,15]
[367032897,1750623099557,-490.0,0.00036438,15]
[367032898,1750623099567,-1105.74,0.00036438,15]
[367032899,1750623099577,-490.0,0.00036438,15]
[367032900,1750623099586,-494.77,0.00036438,15]
[367032901,1750623099596,-630.0,0.00036438,15]
[367032902,1750623099605,-268.94065729,0.00036438,15]
[367032903,1750623099615,-499.33294113,0.00036438,15]
[367032904,1750623099624,-832.19,0.00036438,15]
[367032905,1750623099634,-502.26,0.00036438,15]
[367032906,1750623099644,-703.02,0.00036438,15]
[367032907,1750623099655,-542.6,0.00036438,15]
[367032908,1750623099665,-954.27,0.00036438,15]
[367032909,1750623099675,-490.0,0.00036438,15]
[367032910,1750623099684,-490.0,0.00036438,15]
[367032911,1750623099693,-490.0,0.00036438,15]
[367032912,1750623099703,-678.01,0.00036438,15]
[367032913,1750623099712,-510.22,0.00036438,15]
[367032914,1750623099722,-490.0,0.00036438,15]
[367032915,1750623099731,-490.0,0.00036438,15]
[367032916,1750623099743,-490.0,0.00036438,15]
[367032917,1750623099752,-490.0,0.00036438,15]
[367032918,1750623099762,-490.0,0.00036438,15]
[367032919,1750623099772,-490.0,0.00036438,15]
[367032920,1750623099782,-983.29,0.00036438,15]
[367032921,1750623099797,-500.0,0.00036438,15]
[367032922,1750623099807,-490.0,0.00036438,15]
[367032923,1750623099816,-490.0,0.00036438,15]
[367032924,1750623099826,-490.0,0.00036438,15]
[367032925,1750623099835,-516.34,0.00036438,15]
[367032926,1750623099845,-1516.92,0.00036438,15]
[367032927,1750623099857,-490.0,0.00036438,15]
[367032928,1750623099866,-1197.91,0.00036438,15]
[367032929,1750623099876,-490.0,0.00036438,15]
[367032930,1750623099886,-490.0,0.00036438,15]
[367032931,1750623099895,-490.0,0.00036438,15]
[367032932,1750623099904,-1583.51,0.00036438,15]
[367032933,1750623099914,-490.0,0.00036438,15]
[367032934,1750623099923,-490.0,0.00036438,15]
[367032935,1750623099933,-490.0,0.00036438,15]
[367032936,1750623099942,-1704.3,0.00036438,15]
[367032937,1750623099951,-490.0,0.00036438,15]
[367032938,1750623099960,-490.0,0.00036438,15]
[367032939,1750623099969,-490.0,0.00036438,15]
[367032940,1750623099979,-816.77,0.00036438,15]
[367032941,1750623099989,-490.0,0.00036438,15]
[367032942,1750623099998,-555.04232315,0.00036438,15]
[367032943,1750623100008,-490.0,0.00036438,15]
[367032944,1750623100017,-490.0,0.00036438,15]
[367032945,1750623100026,-564.6,0.00036438,15]
[367032946,1750623100035,-490.0,0.00036438,15]
[367032947,1750623100048,-1235.29,0.00036438,15]
[367032948,1750623100058,-492.16316052,0.00036438,15]
[367032949,1750623100067,-1354.42,0.00036438,15]
[367032950,1750623100076,-490.0,0.00036438,15]